[Event "Titled Tuesday Blitz August 15 Early 2023"]
[White "Souza Neves, Andrey M."]
[Black "Pein, Jonathan"]
[WhiteFideId "2101815"]
[BlackFideId "417092"]
[WhiteElo "2128"]
[BlackElo "2424"]
[Result "0-1"]
[Round "10"]
[TimeControl "180+1"]
[Date "2023.08.15"]
[WhiteClock "0:00:56"]
[BlackClock "0:01:58"]
[Board "150"]

1. d4 {[%clk 0:03:00]}  e6 {[%clk 0:02:56]} 2. c4 {[%clk 0:02:47]}  b6 {[%clk 0:02:53]} 3. e4 {[%clk 0:02:45]}  Bb7 {[%clk 0:02:52]} 4. Nc3 {[%clk 0:02:44]}  Bb4 {[%clk 0:02:52]} 5. Qc2 {[%clk 0:02:44]}  Nc6 {[%clk 0:02:51]} 6. Nf3 {[%clk 0:02:43]}  e5 {[%clk 0:02:49]} 7. Be3 {[%clk 0:02:40]}  exd4 {[%clk 0:02:46]} 8. Nxd4 {[%clk 0:02:40]}  Nf6 {[%clk 0:02:46]} 9. f3 {[%clk 0:02:38]}  Qe7 {[%clk 0:02:44]} 10. Nf5 {[%clk 0:02:34]}  Qf8 {[%clk 0:02:42]} 11. a3 {[%clk 0:02:30]}  Bc5 {[%clk 0:02:42]} 12. Bxc5 {[%clk 0:02:24]}  bxc5 {[%clk 0:02:42]} 13. O-O-O {[%clk 0:02:23]}  g6 {[%clk 0:02:41]} 14. Ne3 {[%clk 0:02:21]}  Nd4 {[%clk 0:02:41]} 15. Qa4 {[%clk 0:02:20]}  Qh6 {[%clk 0:02:39]} 16. Re1 {[%clk 0:02:17]}  Bc6 {[%clk 0:02:37]} 17. Qd1 {[%clk 0:02:13]}  O-O {[%clk 0:02:34]} 18. Kb1 {[%clk 0:02:13]}  Rab8 {[%clk 0:02:33]} 19. Ned5 {[%clk 0:02:11]}  Bxd5 {[%clk 0:02:25]} 20. Nxd5 {[%clk 0:02:10]}  Nxd5 {[%clk 0:02:24]} 21. cxd5 {[%clk 0:02:09]}  d6 {[%clk 0:02:15]} 22. h4 {[%clk 0:01:56]}  Qg7 {[%clk 0:02:13]} 23. Qd2 {[%clk 0:01:50]}  h5 {[%clk 0:02:12]} 24. Be2 {[%clk 0:01:45]}  Rb6 {[%clk 0:02:09]} 25. g4 {[%clk 0:01:35]}  Rfb8 {[%clk 0:02:09]} 26. b4 {[%clk 0:01:32]}  cxb4 {[%clk 0:02:07]} 27. a4 {[%clk 0:01:32]}  b3 {[%clk 0:02:00]} 28. gxh5 {[%clk 0:01:31]}  Nc2 {[%clk 0:01:59]} 29. e5 {[%clk 0:00:56]}  Qxe5 {[%clk 0:01:58]} 0-1


[Site "https://www.chess.com"]

[Event "Titled Tuesday Blitz August 15 Early 2023"]
[White "Saucey, Michel"]
[Black "campochess"]
[WhiteFideId "601845"]
[WhiteElo "2267"]
[BlackElo "2159"]
[Result "1-0"]
[Round "10"]
[TimeControl "180+1"]
[Date "2023.08.15"]
[WhiteClock "0:00:04"]
[BlackClock "0:00:00"]
[Board "152"]

1. d4 {[%clk 0:03:00]}  Nf6 {[%clk 0:02:57]} 2. Nf3 {[%clk 0:02:58]}  g6 {[%clk 0:02:56]} 3. c4 {[%clk 0:02:57]}  Bg7 {[%clk 0:02:53]} 4. g3 {[%clk 0:02:57]}  d5 {[%clk 0:02:53]} 5. cxd5 {[%clk 0:02:57]}  Nxd5 {[%clk 0:02:52]} 6. Bg2 {[%clk 0:02:57]}  c6 {[%clk 0:02:51]} 7. O-O {[%clk 0:02:56]}  O-O {[%clk 0:02:51]} 8. h3 {[%clk 0:02:56]}  Nb6 {[%clk 0:02:46]} 9. Nc3 {[%clk 0:02:55]}  N8d7 {[%clk 0:02:41]} 10. e4 {[%clk 0:02:49]}  Nf6 {[%clk 0:02:37]} 11. b3 {[%clk 0:02:41]}  a5 {[%clk 0:02:23]} 12. Ba3 {[%clk 0:02:27]}  a4 {[%clk 0:02:19]} 13. e5 {[%clk 0:02:21]}  Nfd5 {[%clk 0:02:18]} 14. Ne4 {[%clk 0:02:12]}  Bf5 {[%clk 0:02:05]} 15. Nc5 {[%clk 0:02:11]}  Qc7 {[%clk 0:01:55]} 16. g4 {[%clk 0:02:08]}  Bc8 {[%clk 0:01:44]} 17. Qd2 {[%clk 0:02:03]}  Nd7 {[%clk 0:01:36]} 18. Rfc1 {[%clk 0:01:48]}  Nxc5 {[%clk 0:01:36]} 19. Bxc5 {[%clk 0:01:41]}  Rd8 {[%clk 0:01:31]} 20. Ng5 {[%clk 0:01:18]}  Bh6 {[%clk 0:01:15]} 21. f4 {[%clk 0:00:55]}  Bxg5 {[%clk 0:00:56]} 22. fxg5 {[%clk 0:00:55]}  Be6 {[%clk 0:00:52]} 23. Qf2 {[%clk 0:00:36]}  Rd7 {[%clk 0:00:44]} 24. Ba3 {[%clk 0:00:25]}  Qa5 {[%clk 0:00:24]} 25. Rc5 {[%clk 0:00:22]}  Qa7 {[%clk 0:00:20]} 26. Bb2 {[%clk 0:00:20]}  a3 {[%clk 0:00:12]} 27. Bc1 {[%clk 0:00:19]}  Nb4 {[%clk 0:00:11]} 28. Qd2 {[%clk 0:00:17]}  Na6 {[%clk 0:00:10]} 29. Rc2 {[%clk 0:00:10]}  Qxd4+ {[%clk 0:00:09]} 30. Qxd4 {[%clk 0:00:09]}  Rxd4 {[%clk 0:00:08]} 31. Be3 {[%clk 0:00:08]}  Rd7 {[%clk 0:00:06]} 32. Re1 {[%clk 0:00:06]}  Nb4 {[%clk 0:00:06]} 33. Rf2 {[%clk 0:00:04]}  Nd5 {[%clk 0:00:05]} 34. Bc5 {[%clk 0:00:04]}  Ra5 {[%clk 0:00:00]} 35. Bxd5 {[%clk 0:00:04]} 1-0


[Site "https://www.chess.com"]

[Event "Titled Tuesday Blitz August 15 Early 2023"]
[White "Ai, Evan"]
[Black "Winkels, Marcel"]
[WhiteFideId "2094770"]
[BlackFideId "1003887"]
[WhiteElo "2259"]
[BlackElo "2082"]
[Result "1-0"]
[Round "10"]
[TimeControl "180+1"]
[Date "2023.08.15"]
[WhiteClock "0:00:06"]
[BlackClock "0:00:04"]
[Board "153"]

1. d4 {[%clk 0:03:00]}  Nf6 {[%clk 0:02:58]} 2. Nf3 {[%clk 0:02:58]}  g6 {[%clk 0:02:58]} 3. c4 {[%clk 0:02:58]}  Bg7 {[%clk 0:02:57]} 4. Nc3 {[%clk 0:02:58]}  d5 {[%clk 0:02:57]} 5. cxd5 {[%clk 0:02:59]}  Nxd5 {[%clk 0:02:56]} 6. e4 {[%clk 0:02:57]}  Nxc3 {[%clk 0:02:55]} 7. bxc3 {[%clk 0:02:58]}  c5 {[%clk 0:02:55]} 8. Be2 {[%clk 0:02:58]}  O-O {[%clk 0:02:27]} 9. O-O {[%clk 0:02:44]}  Nc6 {[%clk 0:02:11]} 10. Be3 {[%clk 0:02:43]}  Qa5 {[%clk 0:02:09]} 11. Qb3 {[%clk 0:02:36]}  b6 {[%clk 0:01:50]} 12. e5 {[%clk 0:01:38]}  Ba6 {[%clk 0:01:47]} 13. Bxa6 {[%clk 0:01:36]}  Qxa6 {[%clk 0:01:46]} 14. Ng5 {[%clk 0:01:31]}  Rad8 {[%clk 0:01:31]} 15. e6 {[%clk 0:01:15]}  cxd4 {[%clk 0:01:16]} 16. exf7+ {[%clk 0:00:54]}  Kh8 {[%clk 0:01:13]} 17. cxd4 {[%clk 0:00:41]}  Nxd4 {[%clk 0:00:52]} 18. Bxd4 {[%clk 0:00:37]}  Rxd4 {[%clk 0:00:51]} 19. Ne6 {[%clk 0:00:34]}  Rd3 {[%clk 0:00:40]} 20. Qc2 {[%clk 0:00:12]}  Rxf7 {[%clk 0:00:36]} 21. Rad1 {[%clk 0:00:11]}  Rxd1 {[%clk 0:00:27]} 22. Rxd1 {[%clk 0:00:12]}  Bf8 {[%clk 0:00:09]} 23. Rd8 {[%clk 0:00:08]}  Kg8 {[%clk 0:00:09]} 24. Qc3 {[%clk 0:00:05]}  Qe2 {[%clk 0:00:06]} 25. Qg7+ {[%clk 0:00:05]}  Rxg7 {[%clk 0:00:04]} 26. Rxf8# {[%clk 0:00:06]} 1-0


[Site "https://www.chess.com"]

[Event "Titled Tuesday Blitz August 15 Early 2023"]
[White "Vargas, Mauricio"]
[Black "Mirzanurov, Bulat"]
[WhiteFideId "4404572"]
[BlackFideId "4184521"]
[WhiteElo "1890"]
[BlackElo "2196"]
[Result "0-1"]
[Round "10"]
[TimeControl "180+1"]
[Date "2023.08.15"]
[WhiteClock "0:00:00"]
[BlackClock "0:00:50"]
[Board "157"]

1. e4 {[%clk 0:02:28]}  c5 {[%clk 0:02:55]} 2. Nc3 {[%clk 0:02:27]}  a6 {[%clk 0:02:55]} 3. f4 {[%clk 0:02:26]}  b5 {[%clk 0:02:53]} 4. Nf3 {[%clk 0:02:27]}  Bb7 {[%clk 0:02:53]} 5. d3 {[%clk 0:02:20]}  e6 {[%clk 0:02:52]} 6. g4 {[%clk 0:02:16]}  b4 {[%clk 0:02:49]} 7. Ne2 {[%clk 0:02:16]}  d5 {[%clk 0:02:49]} 8. e5 {[%clk 0:02:14]}  h5 {[%clk 0:02:48]} 9. g5 {[%clk 0:02:14]}  Ne7 {[%clk 0:02:44]} 10. h4 {[%clk 0:02:13]}  Nf5 {[%clk 0:02:41]} 11. Bh3 {[%clk 0:02:10]}  g6 {[%clk 0:02:41]} 12. Bxf5 {[%clk 0:02:05]}  exf5 {[%clk 0:02:34]} 13. O-O {[%clk 0:02:04]}  Qd7 {[%clk 0:02:28]} 14. Qe1 {[%clk 0:01:59]}  Nc6 {[%clk 0:02:23]} 15. c3 {[%clk 0:01:57]}  a5 {[%clk 0:02:22]} 16. Bd2 {[%clk 0:01:56]}  Rb8 {[%clk 0:01:57]} 17. Kh2 {[%clk 0:01:54]}  Ba6 {[%clk 0:01:51]} 18. d4 {[%clk 0:01:47]}  c4 {[%clk 0:01:43]} 19. Qf2 {[%clk 0:01:27]}  Be7 {[%clk 0:01:41]} 20. Rfe1 {[%clk 0:01:03]}  O-O {[%clk 0:01:34]} 21. Ng3 {[%clk 0:01:02]}  Nd8 {[%clk 0:01:27]} 22. Kg2 {[%clk 0:00:56]}  Ne6 {[%clk 0:01:27]} 23. Qe2 {[%clk 0:00:36]}  Rb7 {[%clk 0:01:23]} 24. Nh2 {[%clk 0:00:30]}  bxc3 {[%clk 0:01:18]} 25. bxc3 {[%clk 0:00:27]}  Rb2 {[%clk 0:01:18]} 26. Red1 {[%clk 0:00:24]}  Nxf4+ {[%clk 0:01:11]} 27. Bxf4 {[%clk 0:00:19]}  Rxe2+ {[%clk 0:01:10]} 28. Kg1 {[%clk 0:00:20]}  Rc2 {[%clk 0:01:06]} 29. Bd2 {[%clk 0:00:16]}  Rb8 {[%clk 0:01:05]} 30. Nhf1 {[%clk 0:00:12]}  f4 {[%clk 0:01:00]} 31. Bxf4 {[%clk 0:00:09]}  Rbb2 {[%clk 0:00:58]} 32. Ne3 {[%clk 0:00:00]}  Rxc3 {[%clk 0:00:50]} 0-1


[Site "https://www.chess.com"]

[Event "Titled Tuesday Blitz August 15 Early 2023"]
[White "Latreche, Khadidja"]
[Black "Cheer_Down"]
[WhiteFideId "7901780"]
[WhiteElo "2088"]
[BlackElo "2330"]
[Result "0-1"]
[Round "10"]
[TimeControl "180+1"]
[Date "2023.08.15"]
[WhiteClock "0:00:00"]
[BlackClock "0:00:29"]
[Board "159"]

1. e4 {[%clk 0:03:00]}  c5 {[%clk 0:02:57]} 2. Nf3 {[%clk 0:02:59]}  d6 {[%clk 0:02:57]} 3. d4 {[%clk 0:02:59]}  cxd4 {[%clk 0:02:57]} 4. Nxd4 {[%clk 0:03:00]}  Nf6 {[%clk 0:02:58]} 5. f3 {[%clk 0:03:00]}  e5 {[%clk 0:02:55]} 6. Nb3 {[%clk 0:02:58]}  Be7 {[%clk 0:02:54]} 7. c4 {[%clk 0:02:57]}  a5 {[%clk 0:02:54]} 8. a4 {[%clk 0:02:52]}  O-O {[%clk 0:02:25]} 9. Be3 {[%clk 0:02:49]}  Nc6 {[%clk 0:02:21]} 10. Nc3 {[%clk 0:02:49]}  Nb4 {[%clk 0:02:20]} 11. Be2 {[%clk 0:02:47]}  Be6 {[%clk 0:02:17]} 12. Rc1 {[%clk 0:02:38]}  Rc8 {[%clk 0:02:16]} 13. Nb5 {[%clk 0:02:36]}  Bd7 {[%clk 0:01:59]} 14. O-O {[%clk 0:02:29]}  Bxb5 {[%clk 0:01:59]} 15. axb5 {[%clk 0:02:26]}  b6 {[%clk 0:01:54]} 16. Qd2 {[%clk 0:02:14]}  Nd7 {[%clk 0:01:54]} 17. f4 {[%clk 0:02:10]}  Bf6 {[%clk 0:01:48]} 18. f5 {[%clk 0:01:55]}  Nc5 {[%clk 0:01:45]} 19. Nxc5 {[%clk 0:01:47]}  dxc5 {[%clk 0:01:45]} 20. Rfd1 {[%clk 0:01:44]}  Qxd2 {[%clk 0:01:44]} 21. Rxd2 {[%clk 0:01:45]}  Rfd8 {[%clk 0:01:44]} 22. Rcd1 {[%clk 0:01:45]}  Rd4 {[%clk 0:01:43]} 23. Bxd4 {[%clk 0:01:36]}  cxd4 {[%clk 0:01:37]} 24. b3 {[%clk 0:01:33]}  Bg5 {[%clk 0:01:37]} 25. Rb2 {[%clk 0:01:23]}  Kf8 {[%clk 0:01:34]} 26. Kf1 {[%clk 0:01:21]}  Ke7 {[%clk 0:01:34]} 27. Bd3 {[%clk 0:01:21]}  Kd6 {[%clk 0:01:33]} 28. Ke2 {[%clk 0:01:21]}  Kc5 {[%clk 0:01:33]} 29. g3 {[%clk 0:01:20]}  Be3 {[%clk 0:01:17]} 30. Rf1 {[%clk 0:01:15]}  h5 {[%clk 0:01:12]} 31. Rf3 {[%clk 0:01:08]}  Rh8 {[%clk 0:01:06]} 32. h4 {[%clk 0:01:07]}  Rd8 {[%clk 0:01:03]} 33. Rb1 {[%clk 0:01:03]}  Na2 {[%clk 0:01:00]} 34. Ke1 {[%clk 0:00:33]}  Kb4 {[%clk 0:00:53]} 35. Rb2 {[%clk 0:00:18]}  Nc3 {[%clk 0:00:48]} 36. Re2 {[%clk 0:00:09]}  Bh6 {[%clk 0:00:44]} 37. g4 {[%clk 0:00:07]}  hxg4 {[%clk 0:00:43]} 38. Rg3 {[%clk 0:00:05]}  Kxb3 {[%clk 0:00:36]} 39. Rxg4 {[%clk 0:00:05]}  Nxe2 {[%clk 0:00:33]} 40. Kxe2 {[%clk 0:00:05]}  a4 {[%clk 0:00:32]} 41. Rg1 {[%clk 0:00:03]}  Kb4 {[%clk 0:00:29]} 42. Rb1+ {[%clk 0:00:00]}  Kc5 {[%clk 0:00:29]} 0-1


[Site "https://www.chess.com"]

[Event "Titled Tuesday Blitz August 15 Early 2023"]
[White "rikchessmx"]
[Black "White, John S."]
[BlackFideId "2502348"]
[WhiteElo "2312"]
[BlackElo "1994"]
[Result "1-0"]
[Round "10"]
[TimeControl "180+1"]
[Date "2023.08.15"]
[WhiteClock "0:01:50"]
[BlackClock "0:00:29"]
[Board "160"]

1. e3 {[%clk 0:02:49]}  e6 {[%clk 0:02:57]} 2. c4 {[%clk 0:02:50]}  d5 {[%clk 0:02:54]} 3. cxd5 {[%clk 0:02:49]}  exd5 {[%clk 0:02:54]} 4. b3 {[%clk 0:02:50]}  Nf6 {[%clk 0:02:52]} 5. Bb2 {[%clk 0:02:50]}  c5 {[%clk 0:02:50]} 6. Bd3 {[%clk 0:02:49]}  Nc6 {[%clk 0:02:49]} 7. Bc2 {[%clk 0:02:49]}  Be6 {[%clk 0:02:45]} 8. a3 {[%clk 0:02:48]}  Be7 {[%clk 0:02:44]} 9. Nf3 {[%clk 0:02:48]}  O-O {[%clk 0:02:43]} 10. O-O {[%clk 0:02:43]}  h6 {[%clk 0:02:40]} 11. Ne5 {[%clk 0:02:37]}  Nxe5 {[%clk 0:02:37]} 12. Bxe5 {[%clk 0:02:36]}  Nd7 {[%clk 0:02:33]} 13. Bg3 {[%clk 0:02:32]}  Bf6 {[%clk 0:02:32]} 14. Ra2 {[%clk 0:02:31]}  Rc8 {[%clk 0:02:27]} 15. Nc3 {[%clk 0:02:30]}  a6 {[%clk 0:02:25]} 16. f4 {[%clk 0:02:23]}  Nb6 {[%clk 0:02:02]} 17. Qh5 {[%clk 0:02:16]}  c4 {[%clk 0:01:41]} 18. b4 {[%clk 0:02:14]}  Qd7 {[%clk 0:01:32]} 19. f5 {[%clk 0:02:12]}  g6 {[%clk 0:01:25]} 20. Qxh6 {[%clk 0:02:09]}  Bxf5 {[%clk 0:01:23]} 21. Bxf5 {[%clk 0:02:07]}  gxf5 {[%clk 0:00:58]} 22. Qxf6 {[%clk 0:02:05]}  Rc6 {[%clk 0:00:53]} 23. Qxf5 {[%clk 0:01:58]}  Qe7 {[%clk 0:00:53]} 24. Bh4 {[%clk 0:01:55]}  Qe8 {[%clk 0:00:47]} 25. Bf6 {[%clk 0:01:53]}  Rxf6 {[%clk 0:00:35]} 26. Qxf6 {[%clk 0:01:53]}  Qd7 {[%clk 0:00:29]} 27. Rf5 {[%clk 0:01:50]} 1-0


[Site "https://www.chess.com"]

[Event "Titled Tuesday Blitz August 15 Early 2023"]
[White "Nihal Sarin"]
[Black "Aronian, Levon"]
[WhiteFideId "25092340"]
[BlackFideId "13300474"]
[WhiteElo "3156"]
[BlackElo "3063"]
[Result "0-1"]
[Round "11"]
[TimeControl "180+1"]
[Date "2023.08.15"]
[WhiteClock "0:00:02"]
[BlackClock "0:00:03"]
[Board "1"]

1. Nf3 {[%clk 0:03:00]}  d5 {[%clk 0:02:59]} 2. e3 {[%clk 0:03:01]}  Nf6 {[%clk 0:02:59]} 3. b3 {[%clk 0:03:01]}  c5 {[%clk 0:02:51]} 4. Bb2 {[%clk 0:03:01]}  e6 {[%clk 0:02:51]} 5. c4 {[%clk 0:03:00]}  Nc6 {[%clk 0:02:49]} 6. cxd5 {[%clk 0:02:59]}  exd5 {[%clk 0:02:49]} 7. Bb5 {[%clk 0:02:58]}  Bd6 {[%clk 0:02:48]} 8. O-O {[%clk 0:02:59]}  O-O {[%clk 0:02:48]} 9. d4 {[%clk 0:03:00]}  cxd4 {[%clk 0:02:41]} 10. Nxd4 {[%clk 0:03:01]}  Nxd4 {[%clk 0:02:21]} 11. Bxd4 {[%clk 0:02:03]}  Ne4 {[%clk 0:02:20]} 12. Nd2 {[%clk 0:01:50]}  Qh4 {[%clk 0:01:57]} 13. g3 {[%clk 0:01:43]}  Qh3 {[%clk 0:01:57]} 14. Nxe4 {[%clk 0:01:32]}  dxe4 {[%clk 0:01:57]} 15. Be2 {[%clk 0:01:20]}  Rd8 {[%clk 0:01:44]} 16. Qc2 {[%clk 0:01:15]}  Bf5 {[%clk 0:01:37]} 17. Rfd1 {[%clk 0:01:15]}  h5 {[%clk 0:01:28]} 18. Rac1 {[%clk 0:00:43]}  h4 {[%clk 0:00:55]} 19. Bf1 {[%clk 0:00:43]}  Qg4 {[%clk 0:00:56]} 20. Bg2 {[%clk 0:00:43]}  Ba3 {[%clk 0:00:47]} 21. Rb1 {[%clk 0:00:28]}  Rac8 {[%clk 0:00:43]} 22. Qd2 {[%clk 0:00:28]}  Bc5 {[%clk 0:00:41]} 23. Rbc1 {[%clk 0:00:09]}  Bxd4 {[%clk 0:00:37]} 24. Rxc8 {[%clk 0:00:09]}  Rxc8 {[%clk 0:00:32]} 25. exd4 {[%clk 0:00:04]}  e3 {[%clk 0:00:28]} 26. fxe3 {[%clk 0:00:04]}  Rc2 {[%clk 0:00:28]} 27. Qe1 {[%clk 0:00:03]}  Rxg2+ {[%clk 0:00:13]} 28. Kxg2 {[%clk 0:00:03]}  Be4+ {[%clk 0:00:13]} 29. Kg1 {[%clk 0:00:02]}  Qf3 {[%clk 0:00:14]} 30. Qd2 {[%clk 0:00:02]}  Qh1+ {[%clk 0:00:12]} 31. Kf2 {[%clk 0:00:03]}  Qxh2+ {[%clk 0:00:11]} 32. Ke1 {[%clk 0:00:03]}  Qh1+ {[%clk 0:00:09]} 33. Kf2 {[%clk 0:00:01]}  Qf3+ {[%clk 0:00:07]} 34. Ke1 {[%clk 0:00:02]}  hxg3 {[%clk 0:00:07]} 35. Qe2 {[%clk 0:00:02]}  Qf5 {[%clk 0:00:04]} 36. Kd2 {[%clk 0:00:03]}  Bf3 {[%clk 0:00:03]} 37. Rf1 {[%clk 0:00:03]}  Qa5+ {[%clk 0:00:03]} 38. b4 {[%clk 0:00:02]}  Qxa2+ {[%clk 0:00:03]} 0-1


[Site "https://www.chess.com"]

[Event "Titled Tuesday Blitz August 15 Early 2023"]
[White "Fedoseev, Vladimir"]
[Black "Bluebaum, Matthias"]
[WhiteFideId "24130737"]
[BlackFideId "24651516"]
[WhiteElo "3120"]
[BlackElo "3027"]
[Result "1/2-1/2"]
[Round "11"]
[TimeControl "180+1"]
[Date "2023.08.15"]
[WhiteClock "0:00:11"]
[BlackClock "0:00:18"]
[Board "2"]

1. d4 {[%clk 0:02:36]}  d5 {[%clk 0:03:00]} 2. c4 {[%clk 0:02:36]}  e6 {[%clk 0:03:01]} 3. Nf3 {[%clk 0:02:36]}  Nf6 {[%clk 0:03:01]} 4. Nc3 {[%clk 0:02:28]}  Bb4 {[%clk 0:03:01]} 5. cxd5 {[%clk 0:02:26]}  exd5 {[%clk 0:03:02]} 6. Bg5 {[%clk 0:02:18]}  h6 {[%clk 0:03:02]} 7. Bh4 {[%clk 0:02:16]}  O-O {[%clk 0:03:01]} 8. e3 {[%clk 0:01:53]}  Bf5 {[%clk 0:03:00]} 9. Bd3 {[%clk 0:01:47]}  Bxd3 {[%clk 0:03:01]} 10. Qxd3 {[%clk 0:01:48]}  c6 {[%clk 0:03:01]} 11. Ne5 {[%clk 0:01:47]}  Be7 {[%clk 0:02:59]} 12. O-O {[%clk 0:01:47]}  Nfd7 {[%clk 0:02:45]} 13. Bg3 {[%clk 0:01:35]}  Nxe5 {[%clk 0:02:45]} 14. dxe5 {[%clk 0:01:35]}  Nd7 {[%clk 0:02:44]} 15. Rad1 {[%clk 0:01:36]}  Qb6 {[%clk 0:02:34]} 16. Qc2 {[%clk 0:01:26]}  Nc5 {[%clk 0:02:22]} 17. f4 {[%clk 0:01:26]}  f6 {[%clk 0:02:17]} 18. Bf2 {[%clk 0:01:10]}  fxe5 {[%clk 0:02:16]} 19. fxe5 {[%clk 0:01:05]}  Qc7 {[%clk 0:01:55]} 20. e4 {[%clk 0:01:03]}  dxe4 {[%clk 0:01:43]} 21. Nxe4 {[%clk 0:00:57]}  Nxe4 {[%clk 0:01:38]} 22. Qxe4 {[%clk 0:00:51]}  Rad8 {[%clk 0:01:35]} 23. Be3 {[%clk 0:00:44]}  Rxf1+ {[%clk 0:01:05]} 24. Rxf1 {[%clk 0:00:43]}  Qd7 {[%clk 0:01:06]} 25. Bxa7 {[%clk 0:00:34]}  Qd5 {[%clk 0:00:52]} 26. Qg6 {[%clk 0:00:29]}  Bc5+ {[%clk 0:00:45]} 27. Bxc5 {[%clk 0:00:27]}  Qxc5+ {[%clk 0:00:46]} 28. Kh1 {[%clk 0:00:26]}  Qxe5 {[%clk 0:00:46]} 29. Qf7+ {[%clk 0:00:25]}  Kh8 {[%clk 0:00:41]} 30. Qxb7 {[%clk 0:00:25]}  Rd2 {[%clk 0:00:23]} 31. Qxc6 {[%clk 0:00:23]}  Rf2 {[%clk 0:00:16]} 32. Qc1 {[%clk 0:00:13]}  Qxb2 {[%clk 0:00:16]} 33. Qe1 {[%clk 0:00:10]}  Rxf1+ {[%clk 0:00:15]} 34. Qxf1 {[%clk 0:00:10]}  Qxa2 {[%clk 0:00:16]} 35. h3 {[%clk 0:00:11]}  Qe6 {[%clk 0:00:16]} 36. Qf3 {[%clk 0:00:11]}  Kh7 {[%clk 0:00:16]} 37. Kh2 {[%clk 0:00:12]}  Qe5+ {[%clk 0:00:17]} 38. Qg3 {[%clk 0:00:12]}  Qe6 {[%clk 0:00:17]} 39. Qd3+ {[%clk 0:00:12]}  Kg8 {[%clk 0:00:17]} 40. Qf3 {[%clk 0:00:12]}  Qe5+ {[%clk 0:00:18]} 41. Qg3 {[%clk 0:00:13]}  Qe6 {[%clk 0:00:18]} 42. Qf4 {[%clk 0:00:11]} 1/2-1/2


[Site "https://www.chess.com"]

[Event "Titled Tuesday Blitz August 15 Early 2023"]
[White "Martinez Alcantara, Jose Eduardo"]
[Black "Firouzja, Alireza"]
[WhiteFideId "3805662"]
[BlackFideId "12573981"]
[WhiteElo "3023"]
[BlackElo "3115"]
[Result "0-1"]
[Round "11"]
[TimeControl "180+1"]
[Date "2023.08.15"]
[WhiteClock "0:00:15"]
[BlackClock "0:00:09"]
[Board "3"]

1. e4 {[%clk 0:03:00]}  c5 {[%clk 0:03:00]} 2. Nf3 {[%clk 0:03:01]}  d6 {[%clk 0:03:00]} 3. c3 {[%clk 0:03:01]}  Nf6 {[%clk 0:03:00]} 4. h3 {[%clk 0:03:02]}  e6 {[%clk 0:02:52]} 5. Bd3 {[%clk 0:03:02]}  Nc6 {[%clk 0:02:52]} 6. Bc2 {[%clk 0:03:02]}  e5 {[%clk 0:02:46]} 7. O-O {[%clk 0:03:01]}  Be7 {[%clk 0:02:46]} 8. d4 {[%clk 0:03:02]}  O-O {[%clk 0:02:37]} 9. dxc5 {[%clk 0:02:54]}  dxc5 {[%clk 0:02:38]} 10. Bg5 {[%clk 0:02:54]}  Be6 {[%clk 0:02:34]} 11. Nbd2 {[%clk 0:02:50]}  Nd7 {[%clk 0:02:31]} 12. Be3 {[%clk 0:02:49]}  c4 {[%clk 0:02:28]} 13. b4 {[%clk 0:02:40]}  b5 {[%clk 0:02:24]} 14. a4 {[%clk 0:02:40]}  a6 {[%clk 0:02:24]} 15. Qe2 {[%clk 0:02:40]}  Qc7 {[%clk 0:02:17]} 16. Rfd1 {[%clk 0:02:40]}  Rfd8 {[%clk 0:02:14]} 17. Nf1 {[%clk 0:02:40]}  Nf8 {[%clk 0:02:12]} 18. Rxd8 {[%clk 0:02:36]}  Rxd8 {[%clk 0:02:11]} 19. axb5 {[%clk 0:02:33]}  axb5 {[%clk 0:02:12]} 20. Qe1 {[%clk 0:02:22]}  Qb7 {[%clk 0:02:04]} 21. Ng3 {[%clk 0:02:19]}  Ng6 {[%clk 0:02:02]} 22. Nf5 {[%clk 0:02:12]}  Bf8 {[%clk 0:01:58]} 23. g3 {[%clk 0:02:03]}  f6 {[%clk 0:01:52]} 24. Qe2 {[%clk 0:02:00]}  Nh8 {[%clk 0:01:49]} 25. Nh2 {[%clk 0:01:56]}  Nf7 {[%clk 0:01:48]} 26. Ng4 {[%clk 0:01:53]}  Ra8 {[%clk 0:01:46]} 27. Rd1 {[%clk 0:01:50]}  Ra2 {[%clk 0:01:41]} 28. Rd2 {[%clk 0:01:50]}  Ra3 {[%clk 0:01:41]} 29. Nxf6+ {[%clk 0:01:26]}  gxf6 {[%clk 0:01:37]} 30. Qg4+ {[%clk 0:01:26]}  Kh8 {[%clk 0:01:36]} 31. Qh4 {[%clk 0:01:27]}  Ng5 {[%clk 0:01:18]} 32. Bxg5 {[%clk 0:01:24]}  fxg5 {[%clk 0:01:18]} 33. Qxg5 {[%clk 0:01:24]}  Qf7 {[%clk 0:01:11]} 34. Bd1 {[%clk 0:01:14]}  Qg6 {[%clk 0:00:50]} 35. Qh4 {[%clk 0:01:14]}  h6 {[%clk 0:00:49]} 36. Bg4 {[%clk 0:00:43]}  Qg5 {[%clk 0:00:41]} 37. Qxg5 {[%clk 0:00:43]}  hxg5 {[%clk 0:00:42]} 38. Rc2 {[%clk 0:00:43]}  Bf7 {[%clk 0:00:33]} 39. Ne3 {[%clk 0:00:43]}  Nd4 {[%clk 0:00:28]} 40. Rc1 {[%clk 0:00:35]}  Bg6 {[%clk 0:00:24]} 41. cxd4 {[%clk 0:00:18]}  exd4 {[%clk 0:00:25]} 42. Nxc4 {[%clk 0:00:19]}  bxc4 {[%clk 0:00:23]} 43. Rxc4 {[%clk 0:00:20]}  d3 {[%clk 0:00:14]} 44. Rc8 {[%clk 0:00:19]}  Kg7 {[%clk 0:00:13]} 45. e5 {[%clk 0:00:19]}  Bxb4 {[%clk 0:00:09]} 46. Rc7+ {[%clk 0:00:19]}  Kf8 {[%clk 0:00:10]} 47. Rd7 {[%clk 0:00:10]}  d2 {[%clk 0:00:09]} 48. Kh2 {[%clk 0:00:06]}  Ra1 {[%clk 0:00:08]} 49. h4 {[%clk 0:00:01]}  Be4 {[%clk 0:00:07]} 50. f3 {[%clk 0:00:02]}  d1=Q {[%clk 0:00:07]} 51. Rxd1 {[%clk 0:00:02]}  Rxd1 {[%clk 0:00:08]} 52. fxe4 {[%clk 0:00:03]}  Rd2+ {[%clk 0:00:09]} 53. Kh3 {[%clk 0:00:03]}  gxh4 {[%clk 0:00:10]} 54. Kxh4 {[%clk 0:00:04]}  Bc3 {[%clk 0:00:09]} 55. Kg5 {[%clk 0:00:04]}  Bxe5 {[%clk 0:00:10]} 56. Bf5 {[%clk 0:00:04]}  Bxg3 {[%clk 0:00:10]} 57. Kf6 {[%clk 0:00:05]}  Re2 {[%clk 0:00:10]} 58. Ke6 {[%clk 0:00:05]}  Ra2 {[%clk 0:00:09]} 59. Kf6 {[%clk 0:00:06]}  Ra5 {[%clk 0:00:09]} 60. Be6 {[%clk 0:00:07]}  Be5+ {[%clk 0:00:09]} 61. Kg6 {[%clk 0:00:07]}  Ke7 {[%clk 0:00:10]} 62. Bd5 {[%clk 0:00:08]}  Kd6 {[%clk 0:00:10]} 63. Kf5 {[%clk 0:00:09]}  Ra1 {[%clk 0:00:10]} 64. Kg4 {[%clk 0:00:10]}  Rf1 {[%clk 0:00:11]} 65. Kg5 {[%clk 0:00:10]}  Rf6 {[%clk 0:00:11]} 66. Kg4 {[%clk 0:00:11]}  Rf4+ {[%clk 0:00:11]} 67. Kg5 {[%clk 0:00:12]}  Ke7 {[%clk 0:00:11]} 68. Kg6 {[%clk 0:00:12]}  Rf6+ {[%clk 0:00:10]} 69. Kg5 {[%clk 0:00:13]}  Bf4+ {[%clk 0:00:10]} 70. Kg4 {[%clk 0:00:13]}  Kd6 {[%clk 0:00:11]} 71. Kf3 {[%clk 0:00:11]}  Ke5 {[%clk 0:00:12]} 72. Ke2 {[%clk 0:00:12]}  Kd4 {[%clk 0:00:10]} 73. Kf3 {[%clk 0:00:12]}  Be3+ {[%clk 0:00:10]} 74. Kg4 {[%clk 0:00:13]}  Ke5 {[%clk 0:00:10]} 75. Kg3 {[%clk 0:00:13]}  Rf4 {[%clk 0:00:09]} 76. Kh3 {[%clk 0:00:13]}  Kf6 {[%clk 0:00:09]} 77. Kg3 {[%clk 0:00:13]}  Kg5 {[%clk 0:00:10]} 78. Bc6 {[%clk 0:00:14]}  Bf2+ {[%clk 0:00:09]} 79. Kg2 {[%clk 0:00:14]}  Kh4 {[%clk 0:00:09]} 80. e5 {[%clk 0:00:14]}  Bd4 {[%clk 0:00:08]} 81. e6 {[%clk 0:00:15]}  Rf2+ {[%clk 0:00:09]} 82. Kh1 {[%clk 0:00:15]}  Kg3 {[%clk 0:00:09]} 83. Bb5 {[%clk 0:00:15]}  Rh2# {[%clk 0:00:09]} 0-1


[Site "https://www.chess.com"]